bitfinex/quotes_BTCUSD_20220731
["timestamp","ask_amount","ask_price","bid_price","bid_amount"]
[1659244441904,1.09249139,23802.0,23801.0,0.00072191]
[1659244442127,1.39611339,23802.0,23801.0,0.00072191]
[1659244442344,1.26776739,23802.0,23801.0,0.00072191]
[1659244442573,1.30876739,23802.0,23801.0,0.00072191]
[1659244443282,1.13349139,23802.0,23801.0,0.00072191]
[1659244443732,1.09249139,23802.0,23801.0,0.00072191]
[1659244444409,1.43711339,23802.0,23801.0,0.00072191]
[1659244445727,1.39611339,23802.0,23801.0,0.00072191]
[1659244446378,1.43911339,23802.0,23801.0,0.00072191]
[1659244448203,1.39611339,23802.0,23801.0,0.00072191]
[1659244448459,1.43911339,23802.0,23801.0,0.00072191]
[1659244450234,1.39611339,23802.0,23801.0,0.00072191]
[1659244450462,1.43911339,23802.0,23801.0,0.00072191]
[1659244452389,1.47611339,23802.0,23801.0,0.00072191]
[1659244452610,1.43311339,23802.0,23801.0,0.00072191]
[1659244453917,1.39611339,23802.0,23801.0,0.00072191]
[1659244454352,1.43911339,23802.0,23801.0,0.00072191]
[1659244454798,1.43911339,23802.0,23801.0,0.04517191]
[1659244455021,1.13549139,23802.0,23801.0,0.00072191]
[1659244455489,1.43911339,23802.0,23801.0,0.00072191]
[1659244455729,1.39611339,23802.0,23801.0,0.00072191]
[1659244455952,1.09249139,23802.0,23801.0,0.00072191]
[1659244456438,1.73611339,23802.0,23801.0,0.00072191]
[1659244457823,1.69611339,23802.0,23801.0,0.00072191]
[1659244458520,1.77511339,23802.0,23801.0,0.00072191]
[1659244459373,1.47511339,23802.0,23801.0,0.00072191]
[1659244459827,1.39611339,23802.0,23801.0,0.00072191]
[1659244460475,1.47611339,23802.0,23801.0,0.00072191]
[1659244461851,1.39611339,23802.0,23801.0,0.00072191]
[1659244462721,1.47611339,23802.0,23801.0,0.00072191]
[1659244464081,1.39611339,23802.0,23801.0,0.00072191]
[1659244464506,1.47511339,23802.0,23801.0,0.00072191]
[1659244465689,1.39611339,23802.0,23801.0,0.00072191]
[1659244466350,1.47611339,23802.0,23801.0,0.00072191]
[1659244466813,1.47611339,23802.0,23801.0,0.00019029]
[1659244467469,1.47611339,23802.0,23801.0,0.00071604]
[1659244467676,1.39611339,23802.0,23801.0,0.00071604]
[1659244468379,1.47511339,23802.0,23801.0,0.00071604]
[1659244469744,1.39611339,23802.0,23801.0,0.00071604]
[1659244470510,1.47611339,23802.0,23801.0,0.00071604]
[1659244471785,1.39611339,23802.0,23801.0,0.00071604]
[1659244472473,1.47611339,23802.0,23801.0,0.00071604]
[1659244473844,1.39611339,23802.0,23801.0,0.00071604]
[1659244474504,1.47611339,23802.0,23801.0,0.00071604]
[1659244475813,1.39611339,23802.0,23801.0,0.00071604]
[1659244476493,1.47611339,23802.0,23801.0,0.00071604]
[1659244477888,1.39611339,23802.0,23801.0,0.00071604]
[1659244481338,1.44611339,23802.0,23801.0,0.00071604]
[1659244481549,1.39611339,23802.0,23801.0,0.00071604]
[1659244482218,1.47611339,23802.0,23801.0,0.00071604]
[1659244482644,1.52611339,23802.0,23801.0,0.00071604]
[1659244482881,1.55611339,23802.0,23801.0,0.00071604]
[1659244483129,0.00070396,23801.0,23798.0,1.73e-06]
[1659244483354,0.58253333,23800.0,23798.0,1.73e-06]
[1659244483574,1.57877933,23799.0,23798.0,1.73e-06]
[1659244484454,1.62177933,23799.0,23798.0,1.73e-06]
[1659244484677,1.57877933,23799.0,23798.0,1.73e-06]
[1659244485368,1.87877933,23799.0,23798.0,1.73e-06]
[1659244485837,1.57877933,23799.0,23798.0,1.73e-06]
[1659244486501,1.62177933,23799.0,23798.0,1.73e-06]
[1659244486713,2.06367933,23799.0,23798.0,1.73e-06]
[1659244486927,2.36367933,23799.0,23798.0,1.73e-06]
[1659244487587,2.06367933,23799.0,23798.0,0.00070782]
[1659244487800,2.02067933,23799.0,23798.0,0.00070782]
[1659244488258,2.39367933,23799.0,23798.0,0.00070782]
[1659244488475,2.43667933,23799.0,23798.0,0.00070782]
[1659244488694,2.73667933,23799.0,23798.0,0.00070782]
[1659244489421,2.43667933,23799.0,23798.0,0.00070782]
[1659244489636,2.73667933,23799.0,23798.0,0.00070782]
[1659244489864,2.39367933,23799.0,23798.0,0.00070782]
[1659244490556,2.44067933,23799.0,23798.0,0.00070782]
[1659244490831,2.49067933,23799.0,23798.0,0.00070782]
[1659244491753,2.44367933,23799.0,23798.0,0.00070782]
[1659244492415,2.79067933,23799.0,23798.0,0.00070782]
[1659244493548,0.58702218,23798.0,23796.0,0.0021]
[1659244493769,0.88253333,23797.0,23796.0,0.0021]
[1659244494002,1.18253333,23797.0,23796.0,0.00202624]
[1659244494237,1.23253333,23797.0,23796.0,0.00202624]
[1659244494469,1.27753333,23797.0,23796.0,0.00202624]
[1659244495176,0.97753333,23797.0,23796.0,0.00202624]
[1659244495407,1.02753333,23797.0,23796.0,0.00202624]
[1659244496297,0.63253333,23797.0,23796.0,0.00202624]
[1659244496513,0.67753333,23797.0,23796.0,0.00202624]
[1659244497177,0.62753333,23797.0,23796.0,0.00202624]
[1659244497626,0.97753333,23797.0,23796.0,0.00270946]
[1659244497829,0.93253333,23797.0,23796.0,0.00270946]
[1659244498515,0.97753333,23797.0,23796.0,0.00270946]
[1659244498727,0.8,23796.0,23791.0,0.00190946]
[1659244498955,0.71087933,23795.0,23791.0,0.00190946]
[1659244499392,0.58253333,23794.0,23790.0,0.03048946]
[1659244499394,0.58253333,23794.0,23790.0,0.08048946]
[1659244499610,0.40725733,23793.0,23790.0,0.08048946]
[1659244499841,0.303622,23792.0,23790.0,0.11516262]
[1659244500069,0.40725733,23791.0,23790.0,0.41878462]
[1659244500297,0.40725733,23791.0,23790.0,0.71878462]
[1659244500742,0.40725733,23791.0,23790.0,1.21878462]
[1659244500960,0.40285122,23791.0,23790.0,0.71878462]
[1659244501871,0.40285122,23791.0,23790.0,0.41944614]
[1659244502109,0.40285122,23791.0,23790.0,0.11814133]
[1659244502561,0.40285122,23791.0,23790.0,0.72176333]
[1659244502674,0.40285122,23791.0,23790.0,0.42176333]
[1659244502891,0.40285122,23791.0,23790.0,0.72176333]
[1659244503107,0.40285122,23791.0,23790.0,0.42176333]
[1659244503328,0.40285122,23791.0,23790.0,0.11814133]
[1659244503755,0.40725733,23796.0,23790.0,0.42176333]
[1659244503973,0.3,23795.0,23790.0,0.08115098]
[1659244504190,0.40725733,23794.0,23790.0,0.08115098]
[1659244504425,0.40725733,23794.0,23790.0,0.05066152]
[1659244505060,0.40725733,23794.0,23791.0,0.03467316]
[1659244505272,0.44825733,23794.0,23791.0,0.03467316]
[1659244505481,0.40725733,23793.0,23791.0,0.05]
[1659244505700,0.40725733,23793.0,23790.0,0.05066152]
[1659244506373,0.40725733,23793.0,23791.0,0.03467316]
[1659244506576,0.40725733,23793.0,23790.0,0.05066152]
[1659244506831,0.44925733,23793.0,23790.0,0.05066152]
[1659244508124,0.44425733,23793.0,23790.0,0.05066152]
[1659244508242,0.40225733,23793.0,23790.0,0.05066152]
[1659244508898,0.44425733,23793.0,23790.0,0.05066152]
[1659244509112,0.40725733,23792.0,23790.0,0.05066152]
[1659244509315,0.42566777,23792.0,23791.0,0.05]
[1659244509551,0.42566777,23792.0,23790.0,0.05066152]
[1659244509785,0.01841044,23792.0,23790.0,0.05066152]
[1659244510022,0.40725733,23791.0,23790.0,0.05066152]
[1659244510491,0.40725733,23791.0,23789.0,0.0011]
[1659244510932,0.45225733,23791.0,23789.0,0.0011]
[1659244511571,0.45225733,23791.0,23790.0,0.00067217]
[1659244512220,0.40725733,23791.0,23790.0,0.00067217]
[1659244512661,0.40725733,23791.0,23790.0,0.03534533]
[1659244512890,0.44625733,23791.0,23790.0,0.00067217]
[1659244513324,0.74987933,23791.0,23790.0,0.00067217]
[1659244513745,0.44625733,23791.0,23790.0,0.00067217]
[1659244514212,0.40725733,23791.0,23790.0,0.00067217]
[1659244514433,0.40725733,23791.0,23789.0,0.03643999]
[1659244514726,0.42566777,23791.0,23789.0,0.00176683]
[1659244514956,0.46466777,23791.0,23789.0,0.00176683]
[1659244516067,0.42566777,23791.0,23789.0,0.00176683]
[1659244516900,0.46466777,23791.0,23789.0,0.00176683]
[1659244517543,0.46466777,23791.0,23789.0,0.03643999]
[1659244518000,0.46466777,23791.0,23789.0,0.00176683]
[1659244518229,0.42566777,23791.0,23789.0,0.00176683]
[1659244518469,0.42566777,23791.0,23789.0,0.03643999]
[1659244518700,0.42566777,23791.0,23789.0,0.00176683]
[1659244518915,0.46466777,23791.0,23789.0,0.00176683]
[1659244519553,0.46466777,23791.0,23789.0,0.03655584]
[1659244520024,0.42566777,23791.0,23789.0,0.03655584]
[1659244520440,0.3,23795.0,23789.0,0.03655584]
[1659244520651,1.28144574,23798.0,23789.0,0.03655584]
[1659244520652,0.40725733,23794.0,23789.0,0.33655584]
[1659244520869,0.079,23791.0,23789.0,0.33655584]
[1659244521088,0.079,23791.0,23789.0,0.03655584]
[1659244521307,0.079,23791.0,23789.0,0.30538883]
[1659244521514,0.079,23791.0,23789.0,0.00176683]
[1659244521960,0.48625733,23791.0,23789.0,0.00176683]
[1659244522185,0.303622,23790.0,23789.0,0.00176683]
[1659244522631,0.40725733,23790.0,23789.0,0.00176683]
[1659244522850,0.41425733,23790.0,23789.0,0.00176683]
[1659244523529,0.71787933,23790.0,23789.0,0.00176683]
[1659244524206,0.40725733,23790.0,23789.0,0.00176683]
[1659244524895,0.48725733,23790.0,23789.0,0.00176683]
[1659244526263,0.71087933,23790.0,23789.0,0.00176683]
[1659244526497,0.40725733,23790.0,23789.0,0.00176683]
[1659244526716,0.6868,23794.0,23789.0,0.00176683]
[1659244526961,0.036,23790.0,23789.0,0.00176683]
[1659244528348,0.0942,23796.0,23789.0,0.00176683]
[1659244528349,1.0456,23799.0,23789.0,0.01441031]
[1659244528586,1.0456,23799.0,23791.0,0.210074]
[1659244528587,0.40725733,23798.0,23791.0,0.210074]
[1659244528806,0.40725733,23798.0,23792.0,0.303622]
[1659244529049,0.70725733,23799.0,23793.0,0.335142]
[1659244529282,0.70725733,23799.0,23794.0,0.303622]
[1659244529498,0.70725733,23799.0,23792.0,0.41990081]
[1659244529962,0.40725733,23798.0,23792.0,0.043305]
[1659244530842,0.48625733,23798.0,23792.0,0.043305]
[1659244531074,0.40725733,23797.0,23792.0,0.03066152]
[1659244531514,0.079,23798.0,23793.0,0.513676]
[1659244531759,0.079,23798.0,23797.0,0.13066152]
[1659244531975,0.079,23798.0,23797.0,0.43428352]
[1659244532252,0.68523406,23802.0,23797.0,0.33829516]
[1659244532469,0.40725733,23801.0,23797.0,0.03467316]
[1659244532693,0.38225733,23801.0,23797.0,0.03467316]
[1659244533369,0.38225733,23801.0,23797.0,0.03066152]
[1659244533815,0.68225733,23801.0,23797.0,0.03066152]
[1659244534056,0.40725733,23800.0,23797.0,0.03132907]
[1659244534937,0.48625733,23800.0,23797.0,0.03132907]
[1659244536341,0.40725733,23800.0,23797.0,0.03132907]
[1659244536770,0.00070542,23799.0,23797.0,0.03066152]
[1659244537008,0.40725733,23798.0,23793.0,0.05]
[1659244537240,0.603622,23797.0,23793.0,0.03066152]
[1659244537455,0.58253333,23796.0,23789.0,0.41153]
[1659244537701,0.40725733,23795.0,23790.0,0.33428352]
[1659244537971,0.40725733,23795.0,23791.0,0.303622]
[1659244538186,0.40725733,23795.0,23790.0,0.03066152]
[1659244538400,0.40725733,23795.0,23791.0,0.303622]
[1659244538616,0.40725733,23795.0,23790.0,0.03066152]
[1659244538839,0.40725733,23795.0,23791.0,0.303622]
[1659244538840,0.48625733,23795.0,23791.0,0.303622]
[1659244539289,0.48625733,23795.0,23790.0,0.03066152]
[1659244539519,0.48625733,23795.0,23791.0,0.303622]
[1659244539981,0.48625733,23795.0,23790.0,0.03066152]
[1659244540203,0.40725733,23795.0,23791.0,0.303622]
[1659244540439,0.40725733,23795.0,23790.0,0.33428352]
[1659244540867,0.48625733,23795.0,23790.0,0.33428352]
[1659244541088,0.48766744,23795.0,23791.0,0.303622]
[1659244541309,0.48766744,23795.0,23790.0,0.03066152]
[1659244541526,0.48766744,23795.0,23790.0,0.33428352]
[1659244541822,0.48766744,23795.0,23791.0,0.303622]
[1659244542049,0.48766744,23795.0,23790.0,0.03066152]
[1659244542265,0.40866744,23795.0,23791.0,0.303622]
[1659244542509,0.40866744,23795.0,23792.0,0.03467316]
[1659244542743,0.00141011,23795.0,23790.0,0.03066152]
[1659244542965,0.00141011,23795.0,23790.0,0.36581352]
[1659244543182,0.00141011,23795.0,23791.0,0.3]
[1659244543376,0.08041011,23795.0,23792.0,0.303622]
[1659244543618,0.08041011,23795.0,23790.0,0.03066152]
[1659244543857,0.08041011,23795.0,23791.0,0.303622]
[1659244544080,0.08041011,23795.0,23792.0,0.303622]
[1659244544304,0.08041011,23795.0,23790.0,0.33066152]
[1659244544534,0.40725733,23794.0,23791.0,0.303622]
[1659244544742,0.40725733,23794.0,23792.0,0.303622]
[1659244544955,0.40725733,23794.0,23791.0,0.33839999]
[1659244545173,0.40725733,23794.0,23791.0,0.303622]
[1659244546374,0.40866744,23795.0,23791.0,0.303622]
[1659244546589,0.40866744,23795.0,23792.0,0.03477799]
[1659244547031,0.069,23794.0,23792.0,0.03477799]
[1659244547244,0.069,23794.0,23793.0,0.05]
[1659244547509,0.069,23794.0,23792.0,0.03066152]
[1659244547978,0.069,23794.0,23793.0,0.05]
[1659244548235,0.069,23794.0,23789.0,0.510091]
[1659244548470,0.40866744,23795.0,23790.0,0.303622]
[1659244548714,0.40866744,23795.0,23791.0,0.303622]
[1659244548934,0.04,23794.0,23792.0,0.33829516]
[1659244549151,0.04,23794.0,23793.0,0.303622]
[1659244549382,0.04,23794.0,23789.0,0.510091]
[1659244549605,0.04,23794.0,23790.0,0.303622]
[1659244549804,0.04,23794.0,23791.0,0.603622]
[1659244550132,0.40725733,23794.0,23793.0,0.303622]
[1659244550368,0.40725733,23794.0,23789.0,0.210091]
[1659244550587,0.40725733,23794.0,23790.0,0.303622]
[1659244550826,0.40725733,23794.0,23791.0,0.30583949]
[1659244551028,0.44725733,23794.0,23791.0,0.03689065]
[1659244551271,0.44725733,23794.0,23792.0,0.303622]
[1659244551502,0.44725733,23794.0,23791.0,0.03689065]
[1659244552374,0.40725733,23794.0,23791.0,0.03689065]
[1659244552844,0.40866744,23795.0,23791.0,0.03689065]
[1659244553066,0.037,23794.0,23792.0,0.210063]
[1659244553594,0.037,23794.0,23793.0,0.18066152]
[1659244553809,0.037,23794.0,23793.0,0.73428352]
[1659244554047,0.037,23794.0,23793.0,1.24154085]
[1659244554264,0.00141011,23795.0,23793.0,1.25418433]
[1659244554488,0.00141011,23795.0,23794.0,0.43428352]
[1659244554760,0.27711553,23801.0,23798.0,0.13066152]
[1659244554974,0.40725733,23801.0,23798.0,0.13066152]
[1659244555671,0.303622,23800.0,23798.0,0.13066152]
[1659244555888,0.40725733,23801.0,23798.0,0.13066152]
[1659244556341,0.40725733,23801.0,23794.0,0.510041]
[1659244556589,0.40725733,23801.0,23792.0,0.720084]
[1659244556803,0.40725733,23801.0,23793.0,0.70725733]
[1659244557026,0.48625733,23801.0,23793.0,0.70725733]
[1659244557304,0.40794524,23800.0,23793.0,0.75725733]
[1659244557518,0.40794524,23800.0,23794.0,0.3]
[1659244558929,0.40794524,23800.0,23793.0,0.70725733]
[1659244558930,0.48594524,23800.0,23793.0,0.70725733]
[1659244559144,0.48594524,23800.0,23793.0,0.75725733]
[1659244559382,0.48594524,23800.0,23793.0,0.70725733]
[1659244559610,0.48594524,23800.0,23793.0,0.75725733]
[1659244560068,0.40725733,23799.0,23793.0,0.3]
[1659244560945,0.44725733,23799.0,23793.0,0.3]
[1659244561572,0.44725733,23799.0,23793.0,0.510055]
[1659244561775,0.44725733,23799.0,23793.0,0.470055]
[1659244562222,0.40725733,23798.0,23793.0,0.03066152]
[1659244562440,0.40725733,23798.0,23791.0,0.3]
[1659244562898,0.48525733,23798.0,23791.0,0.3]
[1659244563117,0.40725733,23797.0,23791.0,0.3]
[1659244564040,0.40725733,23797.0,23791.0,0.51007]
[1659244564252,0.40725733,23797.0,23792.0,0.603622]
[1659244564478,0.40725733,23797.0,23793.0,0.3]
[1659244564923,0.46725733,23797.0,23793.0,0.3]
[1659244565176,0.46725733,23797.0,23794.0,0.03467316]
[1659244565619,0.06066496,23797.0,23794.0,0.03467316]
[1659244566303,0.00066496,23797.0,23794.0,0.03467316]
[1659244567036,0.40792229,23797.0,23794.0,0.03467316]
[1659244567256,0.45292229,23797.0,23791.0,0.3]
[1659244567486,0.45292229,23797.0,23791.0,0.6]
[1659244568626,0.40792229,23797.0,23791.0,0.6]
[1659244568850,0.45292229,23797.0,23792.0,0.303622]
[1659244569133,0.45292229,23797.0,23791.0,0.6]
[1659244569366,0.45292229,23797.0,23792.0,0.303622]
[1659244569602,0.45292229,23797.0,23791.0,0.6]
[1659244570257,0.40792229,23797.0,23791.0,0.65]
[1659244570904,0.45292229,23797.0,23791.0,0.65]
[1659244572046,0.45292229,23797.0,23792.0,0.303622]
[1659244572276,0.40792229,23797.0,23791.0,0.65]
[1659244572969,0.45292229,23797.0,23791.0,0.65]
[1659244573209,0.45292229,23797.0,23791.0,0.75]
[1659244573422,0.45292229,23797.0,23792.0,0.513684]
[1659244573649,0.45292229,23797.0,23793.0,0.653622]
[1659244573862,0.45292229,23797.0,23794.0,0.33829516]
[1659244574127,0.04566496,23797.0,23794.0,0.03467316]
[1659244574352,0.00066496,23797.0,23794.0,0.03467316]
[1659244575031,0.40725733,23796.0,23794.0,0.03066152]
[1659244575246,0.40725733,23796.0,23791.0,0.3]
[1659244575455,0.40725733,23796.0,23792.0,0.303622]
[1659244575674,0.40725733,23796.0,23791.0,0.3]
[1659244575895,0.40725733,23796.0,23792.0,0.303622]
[1659244576130,0.40725733,23796.0,23793.0,0.33476128]
[1659244576355,0.06066496,23797.0,23794.0,0.603622]
[1659244576356,0.00066496,23797.0,23794.0,0.603622]
[1659244576578,0.00066496,23797.0,23796.0,0.18066152]
[1659244576858,0.00066496,23797.0,23796.0,1.13428352]
[1659244577061,0.00066496,23797.0,23796.0,1.58579244]
[1659244577284,0.00066496,23797.0,23796.0,1.6204656]
[1659244577758,0.68523406,23802.0,23796.0,1.6204656]
[1659244577989,0.68523406,23802.0,23797.0,1.138558]
[1659244578264,0.68523406,23802.0,23801.0,0.13066152]
[1659244578502,0.68523406,23802.0,23801.0,0.67893868]
[1659244578732,0.68523406,23802.0,23801.0,0.98158822]
[1659244579171,0.68523406,23802.0,23801.0,1.33158822]
[1659244579436,0.68523406,23802.0,23801.0,1.78884555]
[1659244579660,0.68523406,23802.0,23801.0,1.87035555]
[1659244579893,0.68523406,23802.0,23801.0,1.83884555]
[1659244580848,0.68523406,23802.0,23801.0,1.86584555]
[1659244581487,0.68523406,23802.0,23801.0,1.83884555]
[1659244582873,0.68523406,23802.0,23801.0,1.88184555]
[1659244583332,0.68523406,23802.0,23801.0,1.58184555]
[1659244584011,0.68523406,23802.0,23801.0,1.59417189]
[1659244584230,0.68523406,23802.0,23801.0,1.55117189]
[1659244585184,0.68523406,23802.0,23801.0,1.56117189]
[1659244586737,0.68523406,23802.0,23801.0,1.55117189]
[1659244587033,0.68523406,23802.0,23801.0,1.59117189]
[1659244587034,0.68517263,23802.0,23801.0,1.59117189]
[1659244588310,0.68517263,23802.0,23801.0,1.55117189]
[1659244588974,0.68517263,23802.0,23801.0,1.59117189]
[1659244590374,0.68517263,23802.0,23801.0,1.55117189]
[1659244590891,0.68517263,23802.0,23801.0,1.59117189]
[1659244591550,0.68517263,23802.0,23801.0,1.60381537]
[1659244591972,0.68583684,23802.0,23801.0,1.60381537]
[1659244592220,0.68583684,23802.0,23801.0,1.56381537]
[1659244592857,0.68583684,23802.0,23801.0,1.60281537]
[1659244593058,0.68583684,23802.0,23801.0,1.59017189]
[1659244594209,0.68583684,23802.0,23801.0,1.55117189]
[1659244594919,0.68583684,23802.0,23801.0,1.59017189]
[1659244596322,0.68583684,23802.0,23801.0,1.55117189]
[1659244596971,0.68583684,23802.0,23801.0,1.59017189]
[1659244598276,0.68583684,23802.0,23801.0,1.55117189]
[1659244598943,0.68583684,23802.0,23801.0,1.61517189]
[1659244599435,0.00076329,23803.0,23802.0,0.05]
[1659244599661,0.00019337,23806.0,23805.0,0.18066152]
[1659244599944,0.00019337,23806.0,23805.0,1.90591101]
[1659244600176,0.01666,23809.0,23805.0,1.96855449]
[1659244600398,0.01666,23809.0,23808.0,0.48066152]
[1659244600616,0.01666,23809.0,23808.0,2.410694]
[1659244600840,0.01666,23809.0,23808.0,2.09536716]
[1659244601069,0.08966,23809.0,23808.0,1.85591101]
[1659244602881,0.09366,23809.0,23808.0,1.87591101]
[1659244603316,0.09511698,23809.0,23808.0,1.87591101]
[1659244603548,0.09511698,23809.0,23808.0,1.87843812]
[1659244604215,0.01811698,23809.0,23808.0,1.85843812]
[1659244604908,0.09511698,23809.0,23808.0,1.87843812]
[1659244605385,0.09438849,23809.0,23808.0,1.87843812]
[1659244606316,0.01738849,23809.0,23808.0,1.85843812]
[1659244606534,0.01738849,23809.0,23808.0,1.87104366]
[1659244606986,0.09438849,23809.0,23808.0,1.89104366]
[1659244608136,0.01738849,23809.0,23808.0,1.87104366]
[1659244609012,0.01738849,23809.0,23808.0,1.89104366]
[1659244609013,0.09438849,23809.0,23808.0,1.89104366]
[1659244610161,0.01738849,23809.0,23808.0,1.87104366]
[1659244611043,0.09438849,23809.0,23808.0,1.89104366]
[1659244612096,0.01738849,23809.0,23808.0,1.87104366]
[1659244612929,0.09438849,23809.0,23808.0,1.89104366]
[1659244613143,0.09438849,23809.0,23808.0,1.84104366]
[1659244614745,0.09438849,23809.0,23808.0,1.83864291]
[1659244614746,0.23881849,23809.0,23808.0,1.83864291]
[1659244614947,0.23881849,23809.0,23808.0,1.12858606]
[1659244615176,0.16181849,23809.0,23805.0,0.629845]
[1659244615385,0.16181849,23809.0,23803.0,0.14197]
[1659244615386,0.16181849,23809.0,23807.0,0.303622]
[1659244615790,0.16181849,23809.0,23804.0,0.303622]
[1659244615997,0.16181849,23809.0,23806.0,0.303622]
[1659244616279,0.16181849,23809.0,23803.0,0.4]
[1659244616280,0.16181849,23809.0,23805.0,0.209956]
[1659244616499,0.16181849,23809.0,23806.0,0.30374837]
[1659244616500,0.01738849,23809.0,23806.0,0.30374837]
[1659244616733,0.01738849,23809.0,23807.0,0.303622]
[1659244616956,0.01738849,23809.0,23807.0,0.03066152]
[1659244616957,0.09738849,23809.0,23807.0,0.03066152]
[1659244617380,0.09738849,23809.0,23805.0,0.209956]
[1659244617600,0.09738849,23809.0,23805.0,0.559956]
[1659244617807,0.09738849,23809.0,23806.0,0.303622]
[1659244618025,0.09738849,23809.0,23807.0,0.303622]
[1659244618238,0.09738849,23809.0,23808.0,0.05]
[1659244618449,0.09738849,23809.0,23805.0,0.509956]
[1659244618667,0.09738849,23809.0,23806.0,0.303622]
[1659244619206,0.09738849,23809.0,23805.0,0.509956]
[1659244619207,0.01738849,23809.0,23807.0,0.303622]
[1659244619211,0.09638849,23809.0,23807.0,0.303622]
[1659244619638,0.09638849,23809.0,23808.0,0.303622]
[1659244620025,0.09638849,23809.0,23807.0,0.03066152]
[1659244620267,0.09638849,23809.0,23807.0,0.24060452]
[1659244620514,0.01738849,23809.0,23808.0,0.43428352]
[1659244620740,0.01738849,23809.0,23808.0,0.78428352]
[1659244620963,0.09638849,23809.0,23808.0,0.43428352]
[1659244621185,0.09638849,23809.0,23808.0,0.46908302]
[1659244621909,0.09638849,23809.0,23808.0,0.76908302]
[1659244622121,0.096292,23809.0,23808.0,0.76908302]
[1659244622349,0.017292,23809.0,23808.0,0.81908302]
[1659244623096,0.096292,23809.0,23808.0,0.81908302]
[1659244623329,0.096292,23809.0,23808.0,1.52634035]
[1659244623563,0.096292,23809.0,23808.0,1.23898383]
[1659244624225,0.017292,23809.0,23808.0,1.23898383]
[1659244624915,0.094292,23809.0,23808.0,1.26598383]
[1659244625611,0.094292,23809.0,23808.0,1.25334035]
[1659244626045,0.238722,23809.0,23808.0,0.46128352]
[1659244626291,0.161722,23809.0,23807.0,0.22230585]
[1659244626522,0.161722,23809.0,23808.0,0.303622]
[1659244626718,0.161722,23809.0,23807.0,0.22230585]
[1659244626968,0.241722,23809.0,23807.0,0.22230585]
[1659244627197,0.097292,23809.0,23808.0,0.303622]
[1659244627400,0.097292,23809.0,23808.0,0.3]
[1659244627611,0.097292,23809.0,23808.0,0.603622]
[1659244627822,0.097292,23809.0,23808.0,0.303622]
[1659244628286,0.017292,23809.0,23808.0,0.303622]
[1659244628482,0.017292,23809.0,23808.0,0.03502756]
[1659244628691,0.017292,23809.0,23808.0,0.33829516]
[1659244628904,0.017292,23809.0,23808.0,0.345622]
[1659244629146,0.017292,23809.0,23808.0,0.042]
[1659244629366,0.017292,23809.0,23808.0,0.345622]
[1659244629606,0.017292,23809.0,23808.0,0.73064956]
[1659244629843,0.017292,23809.0,23808.0,0.68064956]
[1659244630060,0.017292,23809.0,23808.0,1.13790689]
[1659244630291,0.017292,23809.0,23808.0,1.09590689]
[1659244630981,0.017292,23809.0,23808.0,1.13790689]
[1659244632272,0.017292,23809.0,23808.0,1.09590689]
[1659244632953,0.017292,23809.0,23808.0,1.14990689]
[1659244634063,0.017292,23809.0,23808.0,1.16243279]
[1659244634322,0.017292,23809.0,23808.0,1.10843279]
[1659244634988,0.017292,23809.0,23808.0,1.16243279]
[1659244636332,0.017292,23809.0,23808.0,1.10843279]
[1659244636999,0.090292,23809.0,23808.0,1.12643279]
[1659244638258,0.017292,23809.0,23808.0,1.10843279]
[1659244638932,0.017292,23809.0,23808.0,1.09440523]
[1659244640261,0.017292,23809.0,23808.0,1.07383458]
[1659244640798,0.094292,23809.0,23808.0,1.10083458]
[1659244642997,0.094292,23809.0,23808.0,1.10040523]
[1659244643666,0.094292,23809.0,23808.0,1.05040523]
[1659244644123,0.017292,23809.0,23808.0,1.07340523]
[1659244644937,0.094292,23809.0,23808.0,0.74487933]
[1659244645150,0.094292,23809.0,23808.0,0.44125733]
[1659244645378,0.094292,23809.0,23808.0,0.74487933]
[1659244646071,0.01718989,23809.0,23808.0,0.71087933]
[1659244646299,0.01718989,23809.0,23808.0,1.01087933]
[1659244646517,0.16161989,23809.0,23808.0,0.303622]
[1659244646761,0.16161989,23809.0,23807.0,0.209943]
[1659244646974,0.16161989,23809.0,23808.0,0.047]
[1659244647194,0.1618167,23809.0,23808.0,0.047]
[1659244647445,0.3370927,23809.0,23808.0,0.047]
[1659244647631,0.1618167,23809.0,23808.0,0.047]
[1659244648337,0.1618167,23809.0,23807.0,0.209943]
[1659244648804,0.2418167,23809.0,23807.0,0.209943]
[1659244650163,0.1618167,23809.0,23807.0,0.209943]
[1659244650851,0.2408167,23809.0,23807.0,0.209943]
[1659244651533,0.2408167,23809.0,23807.0,0.24461616]
[1659244651966,0.1963667,23809.0,23807.0,0.209943]
[1659244652741,0.1173667,23809.0,23807.0,0.24461616]
[1659244652903,0.1963667,23809.0,23807.0,0.24461616]
[1659244653295,0.1963667,23809.0,23807.0,0.209943]
[1659244654217,0.0173867,23809.0,23807.0,0.24461616]
[1659244654440,0.0173867,23809.0,23808.0,0.303622]
[1659244654866,0.0173867,23809.0,23808.0,0.603622]
[1659244654867,0.0963867,23809.0,23808.0,0.603622]
[1659244655819,0.0963867,23809.0,23808.0,0.3]
[1659244656041,0.0963867,23809.0,23807.0,0.62527768]
[1659244656254,0.0173867,23809.0,23808.0,0.303622]
[1659244656481,0.0173867,23809.0,23808.0,0.3]
[1659244656691,0.0173867,23809.0,23808.0,0.603622]
[1659244656913,0.0963867,23809.0,23808.0,0.603622]
[1659244658299,0.0173867,23809.0,23808.0,0.603622]
[1659244658951,0.0823867,23809.0,23808.0,0.608622]
[1659244659174,0.0823867,23809.0,23808.0,0.305]
[1659244659391,0.0823867,23809.0,23808.0,0.608622]
[1659244660269,0.0173867,23809.0,23808.0,0.603622]
[1659244660840,0.0823867,23809.0,23808.0,0.608622]
[1659244662266,0.0173867,23809.0,23808.0,0.60351596]
[1659244662920,0.0173867,23809.0,23808.0,0.29989396]
[1659244663150,0.0173867,23809.0,23808.0,0.60351596]
[1659244665812,0.0923867,23809.0,23808.0,0.62051596]
[1659244666252,0.0923867,23809.0,23808.0,0.31689396]
[1659244666733,0.0923867,23809.0,23808.0,0.62051596]
[1659244667138,0.0173867,23809.0,23808.0,0.60351596]
[1659244668173,0.0173867,23809.0,23808.0,0.50351596]
[1659244668526,0.0923867,23809.0,23808.0,0.52051596]
[1659244668776,0.0923867,23809.0,23808.0,0.58051596]
[1659244669681,0.0173867,23809.0,23808.0,0.50583695]
[1659244670097,0.0173867,23809.0,23807.0,0.28772651]
[1659244670361,0.0173867,23809.0,23808.0,0.303622]
[1659244671893,0.0173867,23809.0,23807.0,0.58772651]
[1659244671894,0.1618167,23809.0,23807.0,0.58772651]
[1659244672129,0.1618167,23809.0,23808.0,0.303622]
[1659244672367,0.5444387,23809.0,23807.0,0.209943]
[1659244672616,0.2408167,23809.0,23807.0,0.209943]
[1659244673494,0.2408167,23809.0,23807.0,0.24060452]